[Event "Titled Tuesday Blitz May 23 Early 2023"]
[White "KSho99"]
[Black "Vargas, Gabriela"]
[BlackFideId "3700860"]
[WhiteElo "2172"]
[BlackElo "2057"]
[Result "0-1"]
[Round "10"]
[TimeControl "180+2"]
[Date "2023.05.23"]
[WhiteClock "0:00:00"]
[BlackClock "0:00:33"]

1. Nf3 {[%clk 0:03:00]}  d5 {[%clk 0:02:58]} 2. e3 {[%clk 0:03:00]}  c6 {[%clk 0:02:57]} 3. b3 {[%clk 0:02:57]}  Bg4 {[%clk 0:02:57]} 4. h3 {[%clk 0:02:55]}  Bf5 {[%clk 0:02:56]} 5. Bb2 {[%clk 0:02:49]}  Nd7 {[%clk 0:02:55]} 6. c4 {[%clk 0:02:43]}  e6 {[%clk 0:02:53]} 7. Nc3 {[%clk 0:02:38]}  Ngf6 {[%clk 0:02:52]} 8. d3 {[%clk 0:02:30]}  Bg6 {[%clk 0:02:49]} 9. Be2 {[%clk 0:02:27]}  Bd6 {[%clk 0:02:45]} 10. Nh4 {[%clk 0:02:22]}  O-O {[%clk 0:02:41]} 11. Nxg6 {[%clk 0:02:22]}  hxg6 {[%clk 0:02:41]} 12. O-O {[%clk 0:02:20]}  Qe7 {[%clk 0:02:39]} 13. d4 {[%clk 0:02:09]}  dxc4 {[%clk 0:02:34]} 14. Bxc4 {[%clk 0:02:05]}  e5 {[%clk 0:02:33]} 15. d5 {[%clk 0:01:43]}  e4 {[%clk 0:02:16]} 16. dxc6 {[%clk 0:01:35]}  bxc6 {[%clk 0:02:16]} 17. Ne2 {[%clk 0:01:26]}  Ne5 {[%clk 0:02:13]} 18. Ba6 {[%clk 0:01:19]}  Rfd8 {[%clk 0:02:08]} 19. Qc2 {[%clk 0:01:18]}  Nd3 {[%clk 0:01:58]} 20. Rad1 {[%clk 0:00:52]}  Nxb2 {[%clk 0:01:33]} 21. Qxb2 {[%clk 0:00:52]}  Be5 {[%clk 0:01:33]} 22. Qc2 {[%clk 0:00:52]}  c5 {[%clk 0:01:28]} 23. Bc4 {[%clk 0:00:40]}  Rxd1 {[%clk 0:01:26]} 24. Rxd1 {[%clk 0:00:40]}  Rd8 {[%clk 0:01:26]} 25. Nc3 {[%clk 0:00:17]}  Bxc3 {[%clk 0:01:17]} 26. Rxd8+ {[%clk 0:00:17]}  Qxd8 {[%clk 0:01:17]} 27. Qxc3 {[%clk 0:00:17]}  Qd1+ {[%clk 0:01:10]} 28. Bf1 {[%clk 0:00:10]}  Qd6 {[%clk 0:01:11]} 29. Qa5 {[%clk 0:00:07]}  Qe7 {[%clk 0:01:05]} 30. Bc4 {[%clk 0:00:02]}  Kh7 {[%clk 0:01:01]} 31. Qa6 {[%clk 0:00:02]}  Ne8 {[%clk 0:00:54]} 32. Qc8 {[%clk 0:00:02]}  Nd6 {[%clk 0:00:53]} 33. Qxc5 {[%clk 0:00:01]}  Qf6 {[%clk 0:00:49]} 34. Qd5 {[%clk 0:00:01]}  Qa1+ {[%clk 0:00:46]} 35. Kh2 {[%clk 0:00:01]}  Qf6 {[%clk 0:00:46]} 36. Qd4 {[%clk 0:00:01]}  Qe7 {[%clk 0:00:41]} 37. Be2 {[%clk 0:00:01]}  f5 {[%clk 0:00:39]} 38. a4 {[%clk 0:00:01]}  g5 {[%clk 0:00:38]} 39. b4 {[%clk 0:00:01]}  g6 {[%clk 0:00:37]} 40. b5 {[%clk 0:00:01]}  f4 {[%clk 0:00:36]} 41. Qd5 {[%clk 0:00:00]}  Nf5 {[%clk 0:00:33]} 0-1


[Site "https://www.chess.com"]

[Event "Titled Tuesday Blitz May 23 Early 2023"]
[White "Martinez, Shawn"]
[Black "Acikel, Mert"]
[WhiteFideId "2039770"]
[BlackFideId "12956465"]
[WhiteElo "2174"]
[BlackElo "2097"]
[Result "0-1"]
[Round "10"]
[TimeControl "180+2"]
[Date "2023.05.23"]
[WhiteClock "0:00:04"]
[BlackClock "0:00:05"]

1. e4 {[%clk 0:02:54]}  e5 {[%clk 0:03:00]} 2. Nf3 {[%clk 0:02:53]}  Nc6 {[%clk 0:03:00]} 3. d4 {[%clk 0:02:53]}  exd4 {[%clk 0:03:00]} 4. Nxd4 {[%clk 0:02:54]}  Bc5 {[%clk 0:03:01]} 5. Nb3 {[%clk 0:02:54]}  Bb6 {[%clk 0:03:01]} 6. Qe2 {[%clk 0:02:54]}  a5 {[%clk 0:02:59]} 7. Nc3 {[%clk 0:02:44]}  a4 {[%clk 0:02:48]} 8. Nd2 {[%clk 0:02:41]}  d6 {[%clk 0:02:47]} 9. Nc4 {[%clk 0:02:36]}  Bc5 {[%clk 0:02:45]} 10. Be3 {[%clk 0:02:32]}  Bxe3 {[%clk 0:02:41]} 11. Qxe3 {[%clk 0:02:32]}  Nf6 {[%clk 0:02:40]} 12. O-O-O {[%clk 0:02:30]}  Qe7 {[%clk 0:02:37]} 13. f3 {[%clk 0:02:24]}  Be6 {[%clk 0:02:35]} 14. g4 {[%clk 0:02:22]}  O-O {[%clk 0:02:30]} 15. g5 {[%clk 0:02:04]}  Nd7 {[%clk 0:02:29]} 16. f4 {[%clk 0:02:04]}  Nc5 {[%clk 0:02:21]} 17. Rg1 {[%clk 0:01:53]}  Kh8 {[%clk 0:01:45]} 18. f5 {[%clk 0:01:43]}  Bd7 {[%clk 0:01:39]} 19. Qf4 {[%clk 0:01:25]}  f6 {[%clk 0:01:31]} 20. g6 {[%clk 0:01:15]}  h6 {[%clk 0:01:08]} 21. Ne3 {[%clk 0:01:12]}  Qe5 {[%clk 0:00:59]} 22. Qh4 {[%clk 0:01:05]}  a3 {[%clk 0:00:57]} 23. Ned5 {[%clk 0:00:44]}  axb2+ {[%clk 0:00:53]} 24. Kb1 {[%clk 0:00:44]}  Na4 {[%clk 0:00:33]} 25. Rd3 {[%clk 0:00:31]}  Nxc3+ {[%clk 0:00:31]} 26. Rxc3 {[%clk 0:00:30]}  Bxf5 {[%clk 0:00:24]} 27. exf5 {[%clk 0:00:14]}  Qxd5 {[%clk 0:00:22]} 28. Bc4 {[%clk 0:00:14]}  Qxf5 {[%clk 0:00:17]} 29. Rh3 {[%clk 0:00:12]}  d5 {[%clk 0:00:05]} 30. Bd3 {[%clk 0:00:09]}  Qe5 {[%clk 0:00:04]} 31. Qxh6+ {[%clk 0:00:06]}  gxh6 {[%clk 0:00:04]} 32. g7+ {[%clk 0:00:06]}  Kg8 {[%clk 0:00:04]} 33. Rxh6 {[%clk 0:00:05]}  Kf7 {[%clk 0:00:02]} 34. Rh7 {[%clk 0:00:04]}  Rg8 {[%clk 0:00:02]} 35. Bg6+ {[%clk 0:00:04]}  Ke7 {[%clk 0:00:02]} 36. Bd3 {[%clk 0:00:04]}  Nd8 {[%clk 0:00:03]} 37. Rh8 {[%clk 0:00:04]}  Ne6 {[%clk 0:00:03]} 38. Rh4 {[%clk 0:00:04]}  Rxg7 {[%clk 0:00:03]} 39. Rxg7+ {[%clk 0:00:03]}  Nxg7 {[%clk 0:00:03]} 40. Rh7 {[%clk 0:00:03]}  Kf7 {[%clk 0:00:04]} 41. h4 {[%clk 0:00:02]}  Qe1+ {[%clk 0:00:04]} 42. Kxb2 {[%clk 0:00:03]}  Qb4+ {[%clk 0:00:03]} 43. Kc1 {[%clk 0:00:03]}  Rf8 {[%clk 0:00:04]} 44. h5 {[%clk 0:00:04]}  Re8 {[%clk 0:00:05]} 45. h6 {[%clk 0:00:04]}  Re1# {[%clk 0:00:05]} 0-1


[Site "https://www.chess.com"]

[Event "Titled Tuesday Blitz May 23 Early 2023"]
[White "Cardozo Munar, Carlos Eduardo"]
[Black "Blokhin, Sofia"]
[WhiteFideId "4409477"]
[BlackFideId "4508190"]
[WhiteElo "2067"]
[BlackElo "1994"]
[Result "1-0"]
[Round "10"]
[TimeControl "180+2"]
[Date "2023.05.23"]
[WhiteClock "0:00:19"]
[BlackClock "0:00:30"]

1. e4 {[%clk 0:02:04]}  c5 {[%clk 0:02:59]} 2. Nf3 {[%clk 0:02:01]}  e6 {[%clk 0:02:58]} 3. Bc4 {[%clk 0:02:01]}  a6 {[%clk 0:02:58]} 4. a4 {[%clk 0:02:01]}  Nc6 {[%clk 0:02:55]} 5. Nc3 {[%clk 0:01:59]}  Qc7 {[%clk 0:02:55]} 6. O-O {[%clk 0:02:00]}  Nf6 {[%clk 0:02:55]} 7. Re1 {[%clk 0:02:00]}  Bd6 {[%clk 0:02:51]} 8. h3 {[%clk 0:01:59]}  Nd4 {[%clk 0:02:47]} 9. d3 {[%clk 0:01:47]}  Nxf3+ {[%clk 0:02:35]} 10. Qxf3 {[%clk 0:01:43]}  Be5 {[%clk 0:02:36]} 11. Ne2 {[%clk 0:01:27]}  b6 {[%clk 0:02:31]} 12. c3 {[%clk 0:01:25]}  Bb7 {[%clk 0:02:26]} 13. Bf4 {[%clk 0:01:26]}  d6 {[%clk 0:02:23]} 14. Bxe5 {[%clk 0:01:19]}  dxe5 {[%clk 0:02:23]} 15. Qg3 {[%clk 0:01:19]}  O-O {[%clk 0:02:19]} 16. Bb3 {[%clk 0:01:11]}  c4 {[%clk 0:02:10]} 17. Bxc4 {[%clk 0:01:05]}  Nxe4 {[%clk 0:02:10]} 18. dxe4 {[%clk 0:01:06]}  Qxc4 {[%clk 0:02:09]} 19. Qxe5 {[%clk 0:01:05]}  Qxe4 {[%clk 0:02:01]} 20. Qxe4 {[%clk 0:00:59]}  Bxe4 {[%clk 0:02:02]} 21. Nd4 {[%clk 0:01:00]}  Bd5 {[%clk 0:02:01]} 22. a5 {[%clk 0:00:55]}  b5 {[%clk 0:01:57]} 23. Rad1 {[%clk 0:00:51]}  Rac8 {[%clk 0:01:55]} 24. Nf5 {[%clk 0:00:47]}  Rc7 {[%clk 0:01:38]} 25. Ne7+ {[%clk 0:00:44]}  Rxe7 {[%clk 0:01:35]} 26. Rxd5 {[%clk 0:00:44]}  Rc7 {[%clk 0:01:35]} 27. Rd6 {[%clk 0:00:41]}  Ra8 {[%clk 0:01:33]} 28. Red1 {[%clk 0:00:41]}  h6 {[%clk 0:01:29]} 29. Rb6 {[%clk 0:00:41]}  Rc4 {[%clk 0:01:26]} 30. Rdd6 {[%clk 0:00:39]}  Ra4 {[%clk 0:01:23]} 31. Rxa6 {[%clk 0:00:37]}  Rxa5 {[%clk 0:01:23]} 32. Rxa5 {[%clk 0:00:38]}  Rxa5 {[%clk 0:01:23]} 33. Rb6 {[%clk 0:00:38]}  Kf8 {[%clk 0:01:18]} 34. Kf1 {[%clk 0:00:35]}  Ke7 {[%clk 0:01:18]} 35. Ke2 {[%clk 0:00:34]}  Kf6 {[%clk 0:01:18]} 36. Kd3 {[%clk 0:00:33]}  Ke5 {[%clk 0:01:17]} 37. b4 {[%clk 0:00:31]}  Ra2 {[%clk 0:01:14]} 38. Rxb5+ {[%clk 0:00:32]}  Kd6 {[%clk 0:01:13]} 39. Ke3 {[%clk 0:00:30]}  Rc2 {[%clk 0:01:12]} 40. Rc5 {[%clk 0:00:30]}  f6 {[%clk 0:01:10]} 41. g4 {[%clk 0:00:30]}  e5 {[%clk 0:01:09]} 42. h4 {[%clk 0:00:30]}  g6 {[%clk 0:01:09]} 43. h5 {[%clk 0:00:19]}  gxh5 {[%clk 0:01:08]} 44. gxh5 {[%clk 0:00:20]}  f5 {[%clk 0:01:08]} 45. f4 {[%clk 0:00:20]}  exf4+ {[%clk 0:01:02]} 46. Kxf4 {[%clk 0:00:21]}  Rf2+ {[%clk 0:00:59]} 47. Kg3 {[%clk 0:00:20]}  Rf1 {[%clk 0:00:58]} 48. Ra5 {[%clk 0:00:20]}  f4+ {[%clk 0:00:56]} 49. Kg2 {[%clk 0:00:20]}  Rc1 {[%clk 0:00:56]} 50. Ra6+ {[%clk 0:00:20]}  Ke5 {[%clk 0:00:55]} 51. Rxh6 {[%clk 0:00:21]}  Rxc3 {[%clk 0:00:55]} 52. Rb6 {[%clk 0:00:21]}  Rc2+ {[%clk 0:00:54]} 53. Kf3 {[%clk 0:00:20]}  Rc3+ {[%clk 0:00:54]} 54. Kf2 {[%clk 0:00:21]}  Rc2+ {[%clk 0:00:53]} 55. Kf1 {[%clk 0:00:21]}  Ke4 {[%clk 0:00:52]} 56. h6 {[%clk 0:00:21]}  Kf3 {[%clk 0:00:51]} 57. Ke1 {[%clk 0:00:21]}  Rh2 {[%clk 0:00:50]} 58. b5 {[%clk 0:00:21]}  Ke3 {[%clk 0:00:48]} 59. Re6+ {[%clk 0:00:21]}  Kd4 {[%clk 0:00:47]} 60. b6 {[%clk 0:00:21]}  f3 {[%clk 0:00:47]} 61. b7 {[%clk 0:00:21]}  Rb2 {[%clk 0:00:45]} 62. h7 {[%clk 0:00:20]}  f2+ {[%clk 0:00:45]} 63. Kf1 {[%clk 0:00:19]}  Rb1+ {[%clk 0:00:39]} 64. Kxf2 {[%clk 0:00:19]}  Rb2+ {[%clk 0:00:30]} 65. Re2 {[%clk 0:00:19]} 1-0


[Site "https://www.chess.com"]

[Event "Titled Tuesday Blitz May 23 Early 2023"]
[White "chessjazda"]
[Black "Guevara Sanchez, Erick Marvin"]
[BlackFideId "6700136"]
[WhiteElo "2275"]
[BlackElo "2040"]
[Result "1-0"]
[Round "10"]
[TimeControl "180+2"]
[Date "2023.05.23"]
[WhiteClock "0:01:07"]
[BlackClock "0:00:00"]

1. b4 {[%clk 0:02:59]}  e5 {[%clk 0:02:55]} 2. Bb2 {[%clk 0:02:58]}  d6 {[%clk 0:02:52]} 3. e3 {[%clk 0:02:55]}  Be6 {[%clk 0:02:47]} 4. c4 {[%clk 0:02:54]}  Be7 {[%clk 0:02:46]} 5. Nc3 {[%clk 0:02:53]}  Nf6 {[%clk 0:02:45]} 6. Be2 {[%clk 0:02:51]}  Nbd7 {[%clk 0:02:45]} 7. d4 {[%clk 0:02:50]}  c6 {[%clk 0:02:43]} 8. Nf3 {[%clk 0:02:49]}  Qb6 {[%clk 0:02:40]} 9. b5 {[%clk 0:02:30]}  cxb5 {[%clk 0:02:31]} 10. cxb5 {[%clk 0:02:29]}  e4 {[%clk 0:02:25]} 11. Nd2 {[%clk 0:02:27]}  d5 {[%clk 0:02:24]} 12. O-O {[%clk 0:02:27]}  Bd6 {[%clk 0:02:22]} 13. a4 {[%clk 0:02:27]}  Rc8 {[%clk 0:02:19]} 14. h3 {[%clk 0:02:25]}  g5 {[%clk 0:02:11]} 15. a5 {[%clk 0:02:13]}  Qc7 {[%clk 0:02:08]} 16. Qb3 {[%clk 0:02:12]}  h5 {[%clk 0:01:59]} 17. Rfc1 {[%clk 0:02:07]}  Qb8 {[%clk 0:01:58]} 18. Na4 {[%clk 0:02:03]}  g4 {[%clk 0:01:55]} 19. Rxc8+ {[%clk 0:02:03]}  Qxc8 {[%clk 0:01:55]} 20. Rc1 {[%clk 0:02:03]}  Qb8 {[%clk 0:01:56]} 21. h4 {[%clk 0:02:03]}  b6 {[%clk 0:01:35]} 22. Rc6 {[%clk 0:01:57]}  Bh2+ {[%clk 0:01:24]} 23. Kf1 {[%clk 0:01:54]}  g3 {[%clk 0:01:18]} 24. f3 {[%clk 0:01:54]}  exf3 {[%clk 0:01:18]} 25. Bxf3 {[%clk 0:01:53]}  Ng4 {[%clk 0:01:13]} 26. Ke2 {[%clk 0:01:38]}  Nf2 {[%clk 0:01:09]} 27. Qc2 {[%clk 0:01:31]}  O-O {[%clk 0:00:58]} 28. Nc3 {[%clk 0:01:24]}  Bg4 {[%clk 0:00:43]} 29. Nxd5 {[%clk 0:01:22]}  Qe8 {[%clk 0:00:14]} 30. Rh6 {[%clk 0:01:11]}  f5 {[%clk 0:00:10]} 31. Qc6 {[%clk 0:01:07]}  Bxf3+ {[%clk 0:00:00]} 32. Nxf3 {[%clk 0:01:07]} 1-0


[Site "https://www.chess.com"]

[Event "Titled Tuesday Blitz May 23 Early 2023"]
[White "Singgih, Diajeng Theresa"]
[Black "Thiel, Thomas"]
[WhiteFideId "7104391"]
[BlackFideId "4615964"]
[WhiteElo "1891"]
[BlackElo "2240"]
[Result "1-0"]
[Round "10"]
[TimeControl "180+2"]
[Date "2023.05.23"]
[WhiteClock "0:01:43"]
[BlackClock "0:01:40"]

1. e4 {[%clk 0:03:00]}  d5 {[%clk 0:02:54]} 2. exd5 {[%clk 0:03:00]}  Nf6 {[%clk 0:02:53]} 3. d4 {[%clk 0:02:59]}  Nxd5 {[%clk 0:02:52]} 4. c4 {[%clk 0:02:58]}  Nb6 {[%clk 0:02:50]} 5. Nc3 {[%clk 0:02:59]}  e5 {[%clk 0:02:47]} 6. d5 {[%clk 0:02:55]}  Bb4 {[%clk 0:02:44]} 7. Bd2 {[%clk 0:02:52]}  c6 {[%clk 0:02:44]} 8. Qf3 {[%clk 0:02:48]}  O-O {[%clk 0:02:40]} 9. O-O-O {[%clk 0:02:47]}  cxd5 {[%clk 0:02:38]} 10. cxd5 {[%clk 0:02:46]}  f5 {[%clk 0:02:36]} 11. a3 {[%clk 0:02:39]}  Bd6 {[%clk 0:02:33]} 12. Nh3 {[%clk 0:02:26]}  h6 {[%clk 0:02:29]} 13. Kb1 {[%clk 0:02:23]}  e4 {[%clk 0:02:27]} 14. Qe3 {[%clk 0:02:19]}  N8d7 {[%clk 0:02:23]} 15. Nb5 {[%clk 0:02:17]}  Ne5 {[%clk 0:02:21]} 16. Qd4 {[%clk 0:02:14]}  Ng4 {[%clk 0:02:13]} 17. Nxd6 {[%clk 0:02:07]}  Qxd6 {[%clk 0:02:14]} 18. Bb4 {[%clk 0:02:07]}  Qg6 {[%clk 0:02:02]} 19. Bxf8 {[%clk 0:02:04]}  Kxf8 {[%clk 0:02:03]} 20. Nf4 {[%clk 0:02:03]}  Qe8 {[%clk 0:01:53]} 21. Bc4 {[%clk 0:01:55]}  Bd7 {[%clk 0:01:51]} 22. Bb3 {[%clk 0:01:43]}  a5 {[%clk 0:01:40]} 1-0


[Site "https://www.chess.com"]

[Event "Titled Tuesday Blitz May 23 Early 2023"]
[White "Piesik, Piotr"]
[Black "Blackwhite017"]
[WhiteFideId "1136194"]
[WhiteElo "2299"]
[BlackElo "2096"]
[Result "1-0"]
[Round "10"]
[TimeControl "180+2"]
[Date "2023.05.23"]
[WhiteClock "0:00:50"]
[BlackClock "0:00:24"]

1. Nf3 {[%clk 0:02:56]}  c5 {[%clk 0:03:00]} 2. e4 {[%clk 0:02:54]}  Nc6 {[%clk 0:02:59]} 3. Bb5 {[%clk 0:02:54]}  g6 {[%clk 0:02:59]} 4. Bxc6 {[%clk 0:02:54]}  dxc6 {[%clk 0:02:59]} 5. d3 {[%clk 0:02:54]}  Bg7 {[%clk 0:02:59]} 6. h3 {[%clk 0:02:54]}  Nf6 {[%clk 0:02:57]} 7. Nc3 {[%clk 0:02:51]}  O-O {[%clk 0:02:56]} 8. Bf4 {[%clk 0:02:49]}  Re8 {[%clk 0:02:56]} 9. Qd2 {[%clk 0:02:49]}  Nh5 {[%clk 0:02:54]} 10. Bh6 {[%clk 0:02:48]}  Bh8 {[%clk 0:02:46]} 11. g4 {[%clk 0:02:46]}  Nf6 {[%clk 0:02:42]} 12. O-O-O {[%clk 0:02:46]}  b5 {[%clk 0:02:39]} 13. e5 {[%clk 0:02:32]}  Nd5 {[%clk 0:02:36]} 14. Ne4 {[%clk 0:02:32]}  Qb6 {[%clk 0:02:20]} 15. Be3 {[%clk 0:02:30]}  Nxe3 {[%clk 0:02:19]} 16. Qxe3 {[%clk 0:02:31]}  c4 {[%clk 0:02:07]} 17. dxc4 {[%clk 0:02:27]}  Qxe3+ {[%clk 0:02:07]} 18. fxe3 {[%clk 0:02:28]}  bxc4 {[%clk 0:02:06]} 19. Rd4 {[%clk 0:02:24]}  Be6 {[%clk 0:02:06]} 20. Nc3 {[%clk 0:02:18]}  h5 {[%clk 0:01:57]} 21. gxh5 {[%clk 0:02:16]}  gxh5 {[%clk 0:01:58]} 22. Rh4 {[%clk 0:02:12]}  f6 {[%clk 0:01:52]} 23. Rg1+ {[%clk 0:02:08]}  Kf7 {[%clk 0:01:50]} 24. Rxh5 {[%clk 0:02:09]}  Rg8 {[%clk 0:01:46]} 25. Rh7+ {[%clk 0:01:59]}  Bg7 {[%clk 0:01:43]} 26. Ne4 {[%clk 0:01:50]}  Bf5 {[%clk 0:01:39]} 27. Rh4 {[%clk 0:01:42]}  fxe5 {[%clk 0:01:21]} 28. Neg5+ {[%clk 0:01:34]}  Ke8 {[%clk 0:01:18]} 29. Rxc4 {[%clk 0:01:34]}  Kd7 {[%clk 0:01:11]} 30. h4 {[%clk 0:01:32]}  Bf6 {[%clk 0:01:05]} 31. e4 {[%clk 0:01:27]}  Bg6 {[%clk 0:00:59]} 32. Rc5 {[%clk 0:01:22]}  Bh5 {[%clk 0:00:55]} 33. Nxe5+ {[%clk 0:01:16]}  Kd6 {[%clk 0:00:52]} 34. Nd3 {[%clk 0:01:15]}  Bd4 {[%clk 0:00:47]} 35. e5+ {[%clk 0:01:09]}  Kd7 {[%clk 0:00:37]} 36. Rg3 {[%clk 0:00:53]}  Bxc5 {[%clk 0:00:30]} 37. Nxc5+ {[%clk 0:00:53]}  Kc7 {[%clk 0:00:30]} 38. Nge6+ {[%clk 0:00:50]}  Kb6 {[%clk 0:00:28]} 39. Rb3+ {[%clk 0:00:50]}  Ka5 {[%clk 0:00:25]} 40. Nb7+ {[%clk 0:00:50]}  Ka6 {[%clk 0:00:24]} 41. Nec5# {[%clk 0:00:50]} 1-0


[Site "https://www.chess.com"]

[Event "Titled Tuesday Blitz May 23 Early 2023"]
[White "MANOJ_MISHRA123"]
[Black "Cramling Bellon, Anna"]
[BlackFideId "32009232"]
[WhiteElo "2234"]
[BlackElo "1976"]
[Result "1-0"]
[Round "10"]
[TimeControl "180+2"]
[Date "2023.05.23"]
[WhiteClock "0:00:20"]
[BlackClock "0:00:02"]

1. e4 {[%clk 0:02:58]}  c5 {[%clk 0:02:57]} 2. b4 {[%clk 0:02:56]}  cxb4 {[%clk 0:02:54]} 3. a3 {[%clk 0:02:55]}  b3 {[%clk 0:02:24]} 4. cxb3 {[%clk 0:02:53]}  d5 {[%clk 0:02:18]} 5. exd5 {[%clk 0:02:51]}  Qxd5 {[%clk 0:02:19]} 6. Nc3 {[%clk 0:02:51]}  Qd8 {[%clk 0:02:16]} 7. Nf3 {[%clk 0:02:49]}  Nc6 {[%clk 0:02:16]} 8. Bc4 {[%clk 0:02:48]}  e6 {[%clk 0:02:17]} 9. O-O {[%clk 0:02:46]}  Nf6 {[%clk 0:02:16]} 10. d4 {[%clk 0:02:46]}  Be7 {[%clk 0:02:14]} 11. d5 {[%clk 0:02:28]}  exd5 {[%clk 0:02:03]} 12. Nxd5 {[%clk 0:02:28]}  O-O {[%clk 0:01:51]} 13. Bb2 {[%clk 0:02:25]}  Be6 {[%clk 0:01:44]} 14. Nxe7+ {[%clk 0:02:17]}  Qxe7 {[%clk 0:01:40]} 15. Re1 {[%clk 0:02:16]}  Rfd8 {[%clk 0:01:36]} 16. Qe2 {[%clk 0:02:14]}  Bxc4 {[%clk 0:01:09]} 17. Qxc4 {[%clk 0:02:08]}  Qd6 {[%clk 0:01:04]} 18. Ng5 {[%clk 0:01:56]}  Qd5 {[%clk 0:00:52]} 19. Qh4 {[%clk 0:01:28]}  Nd4 {[%clk 0:00:30]} 20. Rad1 {[%clk 0:00:37]}  Ne2+ {[%clk 0:00:20]} 21. Kf1 {[%clk 0:00:30]}  Qxd1 {[%clk 0:00:08]} 22. Rxd1 {[%clk 0:00:28]}  Rxd1+ {[%clk 0:00:09]} 23. Kxe2 {[%clk 0:00:28]}  Rad8 {[%clk 0:00:10]} 24. Bxf6 {[%clk 0:00:27]}  R1d2+ {[%clk 0:00:06]} 25. Ke3 {[%clk 0:00:21]}  R2d3+ {[%clk 0:00:05]} 26. Ke4 {[%clk 0:00:20]}  gxf6 {[%clk 0:00:02]} 27. Qxh7+ {[%clk 0:00:19]}  Kf8 {[%clk 0:00:02]} 28. Qxf7# {[%clk 0:00:20]} 1-0


[Site "https://www.chess.com"]

[Event "Titled Tuesday Blitz May 23 Early 2023"]
[White "Winkels, Marcel"]
[Black "James, Stuart"]
[WhiteFideId "1003887"]
[BlackFideId "7400489"]
[WhiteElo "1900"]
[BlackElo "1950"]
[Result "0-1"]
[Round "10"]
[TimeControl "180+2"]
[Date "2023.05.23"]
[WhiteClock "0:00:06"]
[BlackClock "0:00:21"]

1. d4 {[%clk 0:03:00]}  Nf6 {[%clk 0:02:53]} 2. Nc3 {[%clk 0:03:01]}  c5 {[%clk 0:02:52]} 3. Bf4 {[%clk 0:03:01]}  cxd4 {[%clk 0:02:52]} 4. Qxd4 {[%clk 0:03:01]}  Nc6 {[%clk 0:02:52]} 5. Qd2 {[%clk 0:03:00]}  e5 {[%clk 0:02:51]} 6. Bg5 {[%clk 0:02:58]}  Be7 {[%clk 0:02:50]} 7. e4 {[%clk 0:02:52]}  h6 {[%clk 0:02:45]} 8. Bh4 {[%clk 0:02:48]}  O-O {[%clk 0:02:44]} 9. Nf3 {[%clk 0:02:47]}  Nxe4 {[%clk 0:02:36]} 10. Bxe7 {[%clk 0:02:33]}  Nxd2 {[%clk 0:02:24]} 11. Bxd8 {[%clk 0:02:33]}  Nxf3+ {[%clk 0:02:25]} 12. gxf3 {[%clk 0:02:29]}  Rxd8 {[%clk 0:02:17]} 13. O-O-O {[%clk 0:02:28]}  d6 {[%clk 0:02:14]} 14. Bc4 {[%clk 0:02:27]}  Be6 {[%clk 0:02:11]} 15. Bd5 {[%clk 0:02:26]}  Bxd5 {[%clk 0:02:03]} 16. Nxd5 {[%clk 0:02:25]}  Rac8 {[%clk 0:02:00]} 17. c3 {[%clk 0:02:24]}  Kf8 {[%clk 0:01:39]} 18. Rhg1 {[%clk 0:02:21]}  g6 {[%clk 0:01:31]} 19. h4 {[%clk 0:02:17]}  Ne7 {[%clk 0:01:30]} 20. h5 {[%clk 0:02:09]}  Nxd5 {[%clk 0:01:26]} 21. Rxd5 {[%clk 0:02:08]}  g5 {[%clk 0:01:27]} 22. Rgd1 {[%clk 0:02:04]}  Ke7 {[%clk 0:01:25]} 23. a4 {[%clk 0:02:02]}  Rc4 {[%clk 0:01:24]} 24. Rb5 {[%clk 0:01:57]}  Rd7 {[%clk 0:01:19]} 25. Rb4 {[%clk 0:01:56]}  Rdc7 {[%clk 0:01:14]} 26. Rxc4 {[%clk 0:01:12]}  Rxc4 {[%clk 0:01:15]} 27. Rd5 {[%clk 0:01:12]}  Rxa4 {[%clk 0:01:06]} 28. Kc2 {[%clk 0:01:11]}  b6 {[%clk 0:01:00]} 29. Rd1 {[%clk 0:01:04]}  Rh4 {[%clk 0:01:00]} 30. b4 {[%clk 0:01:03]}  Rxh5 {[%clk 0:00:53]} 31. Ra1 {[%clk 0:01:02]}  Rh2 {[%clk 0:00:53]} 32. Rxa7+ {[%clk 0:01:01]}  Ke6 {[%clk 0:00:54]} 33. Kd3 {[%clk 0:00:46]}  Rxf2 {[%clk 0:00:52]} 34. Ke3 {[%clk 0:00:45]}  Rc2 {[%clk 0:00:51]} 35. Kd3 {[%clk 0:00:45]}  Rc1 {[%clk 0:00:36]} 36. Rb7 {[%clk 0:00:44]}  h5 {[%clk 0:00:36]} 37. Rxb6 {[%clk 0:00:43]}  h4 {[%clk 0:00:36]} 38. Rb8 {[%clk 0:00:43]}  Kf6 {[%clk 0:00:29]} 39. b5 {[%clk 0:00:39]}  Kg7 {[%clk 0:00:29]} 40. Ra8 {[%clk 0:00:31]}  Rb1 {[%clk 0:00:27]} 41. Kc4 {[%clk 0:00:29]}  h3 {[%clk 0:00:25]} 42. Ra2 {[%clk 0:00:28]}  f5 {[%clk 0:00:24]} 43. Rd2 {[%clk 0:00:16]}  g4 {[%clk 0:00:23]} 44. fxg4 {[%clk 0:00:16]}  fxg4 {[%clk 0:00:23]} 45. Rxd6 {[%clk 0:00:16]}  h2 {[%clk 0:00:23]} 46. Rd7+ {[%clk 0:00:13]}  Kg6 {[%clk 0:00:21]} 47. Rd6+ {[%clk 0:00:06]}  Kg5 {[%clk 0:00:21]} 0-1


[Site "https://www.chess.com"]